[Event "Live Chess"]
[Site "Chess.com"]
[Date "2023.05.20"]
[Round "-"]
[White "Salpingidis"]
[Black "Oleg_Silin"]
[Result "1-0"]
[WhiteElo "2242"]
[BlackElo "1481"]
[TimeControl "300"]
[EndTime "14:49:10 PDT"]
[Termination "Salpingidis won by checkmate"]

1. d4 {[%clk 0:04:58.1]} 1... Nf6 {[%clk 0:04:56.9]} 2. c4 {[%clk 0:04:57.4]}
2... e6 {[%clk 0:04:55.7]} 3. Nc3 {[%clk 0:04:56.7]} 3... Bb4 {[%clk 0:04:53.9]}
4. Qc2 {[%clk 0:04:56.1]} 4... O-O {[%clk 0:04:49.9]} 5. Bg5 {[%clk 0:04:49.3]}
5... h6 {[%clk 0:04:43.1]} 6. Bh4 {[%clk 0:04:47.2]} 6... d5 {[%clk 0:04:40]} 7.
a3 {[%clk 0:04:42.1]} 7... Bxc3+ {[%clk 0:04:38.2]} 8. Qxc3 {[%clk 0:04:42]}
8... c6 {[%clk 0:04:29.5]} 9. e3 {[%clk 0:04:38.7]} 9... Nbd7 {[%clk 0:04:27.3]}
10. Bd3 {[%clk 0:04:35.1]} 10... Qc7 {[%clk 0:04:24.5]} 11. Bg3 {[%clk
0:04:30.5]} 11... Qb6 {[%clk 0:04:15.4]} 12. Nf3 {[%clk 0:04:27.5]} 12... Nh5
{[%clk 0:04:11.1]} 13. Bd6 {[%clk 0:04:23.3]} 13... Re8 {[%clk 0:04:04.7]} 14.
O-O {[%clk 0:04:21.3]} 14... f5 {[%clk 0:03:59]} 15. Ne5 {[%clk 0:04:15.8]}
15... Nhf6 {[%clk 0:03:52.9]} 16. c5 {[%clk 0:04:06]} 16... Qd8 {[%clk
0:03:47.6]} 17. b4 {[%clk 0:04:02.8]} 17... Nxe5 {[%clk 0:03:41.6]} 18. Bxe5
{[%clk 0:03:58.2]} 18... b6 {[%clk 0:03:26.7]} 19. cxb6 {[%clk 0:03:45.6]} 19...
Qxb6 {[%clk 0:03:23.4]} 20. Rac1 {[%clk 0:03:45.1]} 20... Bd7 {[%clk 0:03:15.2]}
21. Qc5 {[%clk 0:03:39.3]} 21... Ne4 {[%clk 0:03:05.9]} 22. Qxb6 {[%clk
0:03:29.5]} 22... axb6 {[%clk 0:03:02.9]} 23. Ra1 {[%clk 0:03:26.5]} 23... c5
{[%clk 0:02:44.9]} 24. Bxe4 {[%clk 0:03:18.4]} 24... fxe4 {[%clk 0:02:40.9]} 25.
bxc5 {[%clk 0:03:17.8]} 25... bxc5 {[%clk 0:02:39.9]} 26. dxc5 {[%clk
0:03:17.2]} 26... Bb5 {[%clk 0:02:27]} 27. Rfb1 {[%clk 0:03:14.2]} 27... Bc4
{[%clk 0:02:22.3]} 28. Rb7 {[%clk 0:03:11]} 28... Rec8 {[%clk 0:02:12.4]} 29.
Rxg7+ {[%clk 0:03:08.2]} 29... Kf8 {[%clk 0:02:10]} 30. a4 {[%clk 0:02:55.5]}
30... Rxc5 {[%clk 0:01:53.5]} 31. Rh7 {[%clk 0:02:51.8]} 31... Rca5 {[%clk
0:01:49.7]} 32. h4 {[%clk 0:02:39.4]} 32... Bb3 {[%clk 0:01:29.9]} 33. Rxh6
{[%clk 0:02:32.7]} 33... Bxa4 {[%clk 0:01:25.9]} 34. Rxe6 {[%clk 0:02:28.7]}
34... Bb3 {[%clk 0:01:14.4]} 35. Rb1 {[%clk 0:02:24.9]} 35... Bc4 {[%clk
0:00:55.8]} 36. Rb7 {[%clk 0:02:19.8]} 36... R5a7 {[%clk 0:00:49.7]} 37. Bd6+
{[%clk 0:02:09.5]} 37... Kg8 {[%clk 0:00:41.7]} 38. Rg6+ {[%clk 0:02:06.8]}
38... Kh8 {[%clk 0:00:34.9]} 39. Be5# {[%clk 0:02:04.9]} 1-0

[Event "Live Chess"]
[Site "Chess.com"]
[Date "2023.05.20"]
[Round "-"]
[White "Jo1ts"]
[Black "therealab0ne"]
[Result "1-0"]
[WhiteElo "751"]
[BlackElo "694"]
[TimeControl "300"]
[EndTime "14:49:12 PDT"]
[Termination "Jo1ts won by resignation"]

1. d4 {[%clk 0:04:59.2]} 1... d5 {[%clk 0:04:58.5]} 2. Bf4 {[%clk 0:04:57]} 2...
Nf6 {[%clk 0:04:54.5]} 3. Nf3 {[%clk 0:04:56.4]} 3... e6 {[%clk 0:04:53.9]} 4.
e3 {[%clk 0:04:55.8]} 4... Bd6 {[%clk 0:04:53.2]} 5. Nbd2 {[%clk 0:04:52.3]}
5... O-O {[%clk 0:04:41]} 6. Bg3 {[%clk 0:04:47.5]} 6... c5 {[%clk 0:04:37.8]}
7. c3 {[%clk 0:04:42.2]} 7... Nc6 {[%clk 0:04:16]} 8. Qc2 {[%clk 0:04:33.5]}
8... cxd4 {[%clk 0:04:07.9]} 9. cxd4 {[%clk 0:04:30.7]} 9... b6 {[%clk
0:03:27.4]} 10. Ng1 {[%clk 0:04:23.1]} 10... a5 {[%clk 0:03:25.8]} 11. Ngf3
{[%clk 0:04:18]} 11... Ba6 {[%clk 0:03:21.7]} 12. Qxc6 {[%clk 0:04:11]} 12...
Bxf1 {[%clk 0:03:09.8]} 13. Rxf1 {[%clk 0:04:05.1]} 13... Qc7 {[%clk 0:03:00.8]}
14. Qxc7 {[%clk 0:04:02.5]} 14... Bxc7 {[%clk 0:02:57.4]} 15. Bxc7 {[%clk
0:04:01.2]} 15... Rac8 {[%clk 0:02:53.3]} 16. Bxb6 {[%clk 0:03:58.4]} 16... Rc2
{[%clk 0:02:52.2]} 17. b3 {[%clk 0:03:47.4]} 17... Ne4 {[%clk 0:02:44.2]} 18.
Nxe4 {[%clk 0:03:37.1]} 18... dxe4 {[%clk 0:02:43.5]} 19. Ne5 {[%clk 0:03:35.8]}
19... f6 {[%clk 0:02:37.3]} 20. Nc4 {[%clk 0:03:31.5]} 20... Rc8 {[%clk
0:02:11.3]} 21. Bxa5 {[%clk 0:03:28.9]} 21... Kf7 {[%clk 0:02:09.7]} 22. Kd1
{[%clk 0:03:27.4]} 1-0

[Event "Live Chess"]
[Site "Chess.com"]
[Date "2023.05.20"]
[Round "-"]
[White "IgorSchukin"]
[Black "laminaaprod"]
[Result "1-0"]
[WhiteElo "1745"]
[BlackElo "2264"]
[TimeControl "300"]
[EndTime "14:49:13 PDT"]
[Termination "IgorSchukin won on time"]

1. e4 {[%clk 0:04:58.7]} 1... d5 {[%clk 0:04:56.8]} 2. exd5 {[%clk 0:04:56.9]}
2... Qxd5 {[%clk 0:04:55.9]} 3. Nc3 {[%clk 0:04:56.1]} 3... Qd8 {[%clk
0:04:50.4]} 4. g3 {[%clk 0:04:54]} 4... Nf6 {[%clk 0:04:48.4]} 5. Bg2 {[%clk
0:04:53.2]} 5... g6 {[%clk 0:04:36]} 6. Nf3 {[%clk 0:04:48.3]} 6... Bg7 {[%clk
0:04:34.9]} 7. O-O {[%clk 0:04:46.7]} 7... O-O {[%clk 0:04:33.5]} 8. d4 {[%clk
0:04:45.5]} 8... c6 {[%clk 0:04:29.2]} 9. h3 {[%clk 0:04:43.7]} 9... Nbd7 {[%clk
0:04:27.8]} 10. Bg5 {[%clk 0:04:41.8]} 10... Nb6 {[%clk 0:04:09.6]} 11. Re1
{[%clk 0:04:24.4]} 11... Be6 {[%clk 0:03:46.4]} 12. b3 {[%clk 0:04:04.4]} 12...
Qd7 {[%clk 0:03:35.3]} 13. Kh2 {[%clk 0:04:02]} 13... Rad8 {[%clk 0:03:34.2]}
14. Qd2 {[%clk 0:03:50.6]} 14... Nbd5 {[%clk 0:02:49]} 15. Nxd5 {[%clk 0:03:23]}
15... cxd5 {[%clk 0:02:47.5]} 16. Bh6 {[%clk 0:03:21.7]} 16... Ne4 {[%clk
0:02:17.6]} 17. Qe3 {[%clk 0:03:19.4]} 17... Nd6 {[%clk 0:01:41.7]} 18. Bxg7
{[%clk 0:03:12.1]} 18... Kxg7 {[%clk 0:01:38.3]} 19. Qe5+ {[%clk 0:03:06.1]}
19... Kg8 {[%clk 0:01:34.3]} 20. Ng5 {[%clk 0:02:53.7]} 20... Bf5 {[%clk
0:01:25.4]} 21. Qxd5 {[%clk 0:02:45.4]} 21... Bxc2 {[%clk 0:01:15.5]} 22. Rac1
{[%clk 0:02:29.4]} 22... Bf5 {[%clk 0:01:08.9]} 23. g4 {[%clk 0:02:24.3]} 23...
Bxg4 {[%clk 0:00:41.6]} 24. hxg4 {[%clk 0:02:22.5]} 24... Qxg4 {[%clk
0:00:41.5]} 25. Bh3 {[%clk 0:01:31.1]} 25... Qf4+ {[%clk 0:00:39.4]} 26. Kh1
{[%clk 0:01:28.9]} 26... Nf5 {[%clk 0:00:27.1]} 27. Qg2 {[%clk 0:01:25.7]} 27...
Nh4 {[%clk 0:00:25.8]} 28. Qg3 {[%clk 0:01:21]} 28... Qxd4 {[%clk 0:00:24.6]}
29. Re4 {[%clk 0:01:13.4]} 29... Qd5 {[%clk 0:00:22.3]} 30. Qxh4 {[%clk
0:01:11.8]} 30... h5 {[%clk 0:00:19.1]} 31. Bg2 {[%clk 0:01:07.3]} 31... Qd2
{[%clk 0:00:17.5]} 32. Rce1 {[%clk 0:01:05.1]} 32... e6 {[%clk 0:00:16.2]} 33.
Nf3 {[%clk 0:01:01.6]} 33... Qd5 {[%clk 0:00:14.7]} 34. Qf6 {[%clk 0:00:59.6]}
34... Qf5 {[%clk 0:00:13.5]} 35. Qxf5 {[%clk 0:00:55]} 35... exf5 {[%clk
0:00:13.4]} 36. Re7 {[%clk 0:00:52.9]} 36... Rd2 {[%clk 0:00:13]} 37. R1e2
{[%clk 0:00:50.3]} 37... Rxe2 {[%clk 0:00:11.7]} 38. Rxe2 {[%clk 0:00:48.8]}
38... Rc8 {[%clk 0:00:11.6]} 39. Ng5 {[%clk 0:00:46.3]} 39... Rc7 {[%clk
0:00:10.6]} 40. f4 {[%clk 0:00:44.9]} 40... Kg7 {[%clk 0:00:09.9]} 41. Kh2
{[%clk 0:00:44.1]} 41... Kf6 {[%clk 0:00:09.1]} 42. Kg3 {[%clk 0:00:43.1]} 42...
b6 {[%clk 0:00:08.6]} 43. Bd5 {[%clk 0:00:41.3]} 43... Rc3+ {[%clk 0:00:07.8]}
44. Kf2 {[%clk 0:00:38.2]} 44... h4 {[%clk 0:00:06.5]} 45. Nxf7 {[%clk
0:00:34.3]} 45... h3 {[%clk 0:00:05.6]} 46. Ng5 {[%clk 0:00:29]} 46... Rc5
{[%clk 0:00:05.2]} 47. Bc4 {[%clk 0:00:27.7]} 47... b5 {[%clk 0:00:04.8]} 48.
Bd3 {[%clk 0:00:25.6]} 48... Rc3 {[%clk 0:00:04.6]} 49. Bxb5 {[%clk 0:00:23.9]}
49... Rc1 {[%clk 0:00:04]} 50. Nxh3 {[%clk 0:00:22.2]} 50... Rc5 {[%clk
0:00:03]} 51. Bc4 {[%clk 0:00:20.6]} 51... Rc8 {[%clk 0:00:02.9]} 52. Ng5 {[%clk
0:00:19.6]} 52... Rd8 {[%clk 0:00:02.7]} 53. Re6+ {[%clk 0:00:18.6]} 53... Kg7
{[%clk 0:00:02.6]} 54. Re7+ {[%clk 0:00:17.1]} 54... Kf8 {[%clk 0:00:01.7]} 55.
Rf7+ {[%clk 0:00:15.6]} 55... Ke8 {[%clk 0:00:01.6]} 56. Bb5+ {[%clk 0:00:13.2]}
56... Rd7 {[%clk 0:00:01.5]} 57. Bxd7+ {[%clk 0:00:12.1]} 57... Kd8 {[%clk
0:00:01.4]} 58. Bxf5 {[%clk 0:00:10.9]} 58... Ke8 {[%clk 0:00:00.6]} 59. Bxg6
{[%clk 0:00:08.5]} 59... Kd8 {[%clk 0:00:00.5]} 60. Be4 {[%clk 0:00:07.4]} 60...
a5 {[%clk 0:00:00.4]} 61. Ra7 {[%clk 0:00:06.3]} 61... Kc8 {[%clk 0:00:00.3]}
62. Rxa5 {[%clk 0:00:05.6]} 62... Kb8 {[%clk 0:00:00.2]} 63. Ra4 {[%clk
0:00:04.9]} 63... Kc8 {[%clk 0:00:00.1]} 64. f5 {[%clk 0:00:04.1]} 1-0

[Event "Live Chess"]
[Site "Chess.com"]
[Date "2023.05.20"]
[Round "-"]
[White "FlyingChessKestrel13"]
[Black "colourmefree"]
[Result "1-0"]
[WhiteElo "2114"]
[BlackElo "398"]
[TimeControl "300"]
[EndTime "14:49:22 PDT"]
[Termination "FlyingChessKestrel13 won by resignation"]

1. e4 {[%clk 0:04:57.8]} 1... e6 {[%clk 0:04:58.2]} 2. d4 {[%clk 0:04:55.8]}
2... Nc6 {[%clk 0:04:55.8]} 3. d5 {[%clk 0:04:54.8]} 3... exd5 {[%clk
0:04:53.7]} 4. exd5 {[%clk 0:04:54.1]} 4... Nf6 {[%clk 0:04:52.9]} 5. dxc6
{[%clk 0:04:52.7]} 5... bxc6 {[%clk 0:04:48.1]} 6. Nf3 {[%clk 0:04:51.4]} 6...
Bb7 {[%clk 0:04:47.1]} 7. Be2 {[%clk 0:04:49.5]} 7... Bb4+ {[%clk 0:04:42.2]} 8.
c3 {[%clk 0:04:47.1]} 8... Ba5 {[%clk 0:04:40.2]} 9. O-O {[%clk 0:04:46.6]} 9...
O-O {[%clk 0:04:36.7]} 10. Nbd2 {[%clk 0:04:46.1]} 10... Re8 {[%clk 0:04:35.5]}
11. Nc4 {[%clk 0:04:43.4]} 11... Bxc3 {[%clk 0:04:04.7]} 12. bxc3 {[%clk
0:04:40.2]} 12... Nd5 {[%clk 0:03:57.9]} 13. Qc2 {[%clk 0:04:36.3]} 13... Nf4
{[%clk 0:03:44.1]} 14. Bxf4 {[%clk 0:04:33]} 1-0

[Event "Live Chess"]
[Site "Chess.com"]
[Date "2023.05.20"]
[Round "-"]
[White "JohanKjeldahl"]
[Black "chrisbradgate"]
[Result "1-0"]
[WhiteElo "1854"]
[BlackElo "861"]
[TimeControl "300"]
[EndTime "14:49:23 PDT"]
[Termination "JohanKjeldahl won by checkmate"]

1. e4 {[%clk 0:04:57.6]} 1... e5 {[%clk 0:04:59.4]} 2. Nf3 {[%clk 0:04:54.5]}
2... Nc6 {[%clk 0:04:54.8]} 3. d4 {[%clk 0:04:53.2]} 3... exd4 {[%clk
0:04:53.5]} 4. c3 {[%clk 0:04:52.4]} 4... dxc3 {[%clk 0:04:51.8]} 5. Bc4 {[%clk
0:04:51.2]} 5... h6 {[%clk 0:04:50.2]} 6. Nxc3 {[%clk 0:04:48.8]} 6... Nf6
{[%clk 0:04:49.1]} 7. O-O {[%clk 0:04:46.8]} 7... Bb4 {[%clk 0:04:48]} 8. e5
{[%clk 0:04:45]} 8... Nh7 {[%clk 0:04:38]} 9. Nd5 {[%clk 0:04:40.9]} 9... O-O
{[%clk 0:04:34.2]} 10. Nxb4 {[%clk 0:04:34.8]} 10... Nxb4 {[%clk 0:04:33.7]} 11.
a3 {[%clk 0:04:33.2]} 11... Nc6 {[%clk 0:04:32.7]} 12. Bf4 {[%clk 0:04:31.6]}
12... b6 {[%clk 0:04:30.2]} 13. Bd5 {[%clk 0:04:28.9]} 13... Bb7 {[%clk
0:04:28.7]} 14. Rc1 {[%clk 0:04:26.8]} 14... g5 {[%clk 0:04:10.7]} 15. Bg3
{[%clk 0:04:23.6]} 15... h5 {[%clk 0:04:06.1]} 16. Qd3 {[%clk 0:04:19.7]} 16...
h4 {[%clk 0:03:59.3]} 17. Qg6+ {[%clk 0:03:57.9]} 17... Kh8 {[%clk 0:03:43.6]}
18. Bxf7 {[%clk 0:03:54.7]} 18... Rxf7 {[%clk 0:03:35.7]} 19. Qxf7 {[%clk
0:03:51.5]} 19... hxg3 {[%clk 0:03:34.6]} 20. fxg3 {[%clk 0:03:50.5]} 20... Qe8
{[%clk 0:03:19]} 21. Qf5 {[%clk 0:03:42.6]} 21... Ne7 {[%clk 0:03:01.5]} 22. Qd3
{[%clk 0:03:34.2]} 22... Bxf3 {[%clk 0:02:54.8]} 23. Rxf3 {[%clk 0:03:31]} 23...
c5 {[%clk 0:02:27.6]} 24. Rcf1 {[%clk 0:03:28.8]} 24... Ng6 {[%clk 0:02:19.7]}
25. Rf7 {[%clk 0:03:25.6]} 25... Qxe5 {[%clk 0:02:10.5]} 26. Qxg6 {[%clk
0:03:21.2]} 26... Qd4+ {[%clk 0:02:05.5]} 27. Kh1 {[%clk 0:03:18.5]} 27... Qg1+
{[%clk 0:01:05.4]} 28. Kxg1 {[%clk 0:03:15.1]} 28... Rg8 {[%clk 0:01:03.2]} 29.
Rxh7# {[%clk 0:03:11.1]} 1-0

[Event "Live Chess"]
[Site "Chess.com"]
[Date "2023.05.20"]
[Round "-"]
[White "diana21strabt"]
[Black "elvenstar"]
[Result "1-0"]
[WhiteElo "1695"]
[BlackElo "1572"]
[TimeControl "300"]
[EndTime "14:49:46 PDT"]
[Termination "diana21strabt won on time"]

1. e4 {[%clk 0:04:58.2]} 1... d5 {[%clk 0:04:58.8]} 2. exd5 {[%clk 0:04:57.1]}
2... Nf6 {[%clk 0:04:56.8]} 3. Nc3 {[%clk 0:04:55.7]} 3... e6 {[%clk 0:04:55.4]}
4. dxe6 {[%clk 0:04:54.4]} 4... Bxe6 {[%clk 0:04:53.1]} 5. Nf3 {[%clk
0:04:53.4]} 5... Bd6 {[%clk 0:04:50.6]} 6. Bb5+ {[%clk 0:04:52.4]} 6... c6
{[%clk 0:04:49]} 7. Be2 {[%clk 0:04:51.3]} 7... O-O {[%clk 0:04:46.8]} 8. O-O
{[%clk 0:04:50.8]} 8... Nbd7 {[%clk 0:04:45]} 9. d3 {[%clk 0:04:50.1]} 9... Qc7
{[%clk 0:04:44]} 10. Bg5 {[%clk 0:04:49.4]} 10... h6 {[%clk 0:04:43]} 11. Bxf6
{[%clk 0:04:48.2]} 11... Nxf6 {[%clk 0:04:41.4]} 12. h3 {[%clk 0:04:47.7]} 12...
Rfe8 {[%clk 0:04:39.7]} 13. Ne4 {[%clk 0:04:44.9]} 13... Nxe4 {[%clk 0:04:36.5]}
14. dxe4 {[%clk 0:04:44.3]} 14... Rad8 {[%clk 0:04:35.3]} 15. Bd3 {[%clk
0:04:43.4]} 15... Bc5 {[%clk 0:04:15.8]} 16. Qe2 {[%clk 0:04:34.4]} 16... Qf4
{[%clk 0:03:35.3]} 17. a3 {[%clk 0:04:07.4]} 17... Bf5 {[%clk 0:02:57.8]} 18. g3
{[%clk 0:03:54.3]} 18... Qxg3+ {[%clk 0:02:53.9]} 19. Kh1 {[%clk 0:03:51.3]}
19... Qxh3+ {[%clk 0:02:50.2]} 20. Nh2 {[%clk 0:03:50.4]} 20... Bd6 {[%clk
0:02:38]} 21. f4 {[%clk 0:03:48.8]} 21... Qh4 {[%clk 0:02:09.6]} 22. e5 {[%clk
0:03:38]} 22... Bxd3 {[%clk 0:01:42.8]} 23. cxd3 {[%clk 0:03:36.6]} 23... f6
{[%clk 0:01:19]} 24. Qg4 {[%clk 0:03:29.4]} 24... Qxg4 {[%clk 0:01:12.3]} 25.
Nxg4 {[%clk 0:03:28]} 25... h5 {[%clk 0:01:07.3]} 26. Nxf6+ {[%clk 0:03:20.1]}
26... gxf6 {[%clk 0:01:03.8]} 27. exd6 {[%clk 0:03:18.9]} 27... Rxd6 {[%clk
0:01:00.8]} 28. Rf3 {[%clk 0:03:14.8]} 28... Kf7 {[%clk 0:00:56.4]} 29. Kg2
{[%clk 0:03:11.2]} 29... Rh8 {[%clk 0:00:50.4]} 30. Rh1 {[%clk 0:03:06.8]} 30...
f5 {[%clk 0:00:33.5]} 31. Rfh3 {[%clk 0:03:00.6]} 31... Rdh6 {[%clk 0:00:25.2]}
32. Kf2 {[%clk 0:02:56.4]} 32... h4 {[%clk 0:00:20.7]} 33. Re1 {[%clk 0:02:49]}
33... Re6 {[%clk 0:00:17.4]} 34. Re5 {[%clk 0:02:42.4]} 34... Kf6 {[%clk
0:00:13.4]} 35. d4 {[%clk 0:02:40.1]} 35... b6 {[%clk 0:00:11.1]} 36. Kf3 {[%clk
0:02:38.4]} 36... c5 {[%clk 0:00:08.7]} 37. dxc5 {[%clk 0:02:31.2]} 37... Rxe5
{[%clk 0:00:06.1]} 38. fxe5+ {[%clk 0:02:29.3]} 38... Kxe5 {[%clk 0:00:03.3]}
39. cxb6 {[%clk 0:02:28.2]} 39... axb6 {[%clk 0:00:02.2]} 40. b4 {[%clk
0:02:18.9]} 1-0

[Event "Live Chess"]
[Site "Chess.com"]
[Date "2023.05.20"]
[Round "-"]
[White "wot-not"]
[Black "grillage"]
[Result "0-1"]
[WhiteElo "1522"]
[BlackElo "1845"]
[TimeControl "300"]
[EndTime "14:49:50 PDT"]
[Termination "grillage won by resignation"]

1. e4 {[%clk 0:04:56.8]} 1... d5 {[%clk 0:04:58.2]} 2. e5 {[%clk 0:04:55.5]}
2... c5 {[%clk 0:04:56.3]} 3. f4 {[%clk 0:04:54.9]} 3... Nc6 {[%clk 0:04:54]} 4.
Nf3 {[%clk 0:04:54.5]} 4... Bg4 {[%clk 0:04:52.9]} 5. Bb5 {[%clk 0:04:48.7]}
5... e6 {[%clk 0:04:47.5]} 6. O-O {[%clk 0:04:47.4]} 6... Ne7 {[%clk 0:04:44.6]}
7. d4 {[%clk 0:04:46.4]} 7... a6 {[%clk 0:04:40.8]} 8. Be2 {[%clk 0:04:36.3]}
8... cxd4 {[%clk 0:04:38.1]} 9. Nbd2 {[%clk 0:04:34.7]} 9... Nf5 {[%clk
0:04:31.6]} 10. Nb3 {[%clk 0:04:33.1]} 10... Ne3 {[%clk 0:04:28.2]} 11. Bxe3
{[%clk 0:04:31.6]} 11... dxe3 {[%clk 0:04:27.6]} 12. c3 {[%clk 0:04:12.6]} 12...
Be7 {[%clk 0:04:12.4]} 13. Nbd4 {[%clk 0:04:11.5]} 13... Qb6 {[%clk 0:04:01.3]}
14. Nxc6 {[%clk 0:04:10.5]} 14... bxc6 {[%clk 0:03:57.3]} 15. h3 {[%clk
0:04:01.3]} 15... Bxf3 {[%clk 0:03:55.7]} 16. Rxf3 {[%clk 0:03:59.3]} 16... O-O
{[%clk 0:03:49.7]} 17. b3 {[%clk 0:03:50.3]} 17... a5 {[%clk 0:03:30.5]} 18. Kh2
{[%clk 0:03:30.9]} 18... a4 {[%clk 0:03:28]} 19. b4 {[%clk 0:03:25.2]} 19... c5
{[%clk 0:03:26.8]} 20. f5 {[%clk 0:03:01.9]} 20... exf5 {[%clk 0:03:15.8]} 21.
Rxf5 {[%clk 0:03:00.9]} 21... d4 {[%clk 0:03:09]} 22. bxc5 {[%clk 0:02:18.4]}
22... Bxc5 {[%clk 0:03:07.2]} 23. Rb1 {[%clk 0:02:15.2]} 23... Qe6 {[%clk
0:03:04]} 24. Bg4 {[%clk 0:02:12.4]} 24... Qd5 {[%clk 0:02:44.7]} 25. Bf3 {[%clk
0:01:59.9]} 25... Qd7 {[%clk 0:02:31]} 26. Rf4 {[%clk 0:01:12.1]} 26... d3
{[%clk 0:02:24.2]} 27. c4 {[%clk 0:01:05]} 27... d2 {[%clk 0:01:57.2]} 28. Bxa8
{[%clk 0:01:03.3]} 28... Rxa8 {[%clk 0:01:55.4]} 29. Qf3 {[%clk 0:00:41.5]}
29... Rd8 {[%clk 0:01:44]} 30. Rd1 {[%clk 0:00:24.6]} 30... Re8 {[%clk
0:01:25.2]} 31. Rf5 {[%clk 0:00:19.4]} 31... g6 {[%clk 0:01:21.2]} 32. Rf6
{[%clk 0:00:15.4]} 32... Rxe5 {[%clk 0:01:17.8]} 33. Qa8+ {[%clk 0:00:14.4]}
33... Re8 {[%clk 0:01:15.1]} 34. Qd5 {[%clk 0:00:13]} 34... Qxd5 {[%clk
0:01:09.2]} 35. cxd5 {[%clk 0:00:12.3]} 35... e2 {[%clk 0:01:07.2]} 0-1

[Event "Live Chess"]
[Site "Chess.com"]
[Date "2023.05.20"]
[Round "-"]
[White "Wild_Tiger"]
[Black "TheSmoulderingMaster"]
[Result "0-1"]
[WhiteElo "1080"]
[BlackElo "1705"]
[TimeControl "300"]
[EndTime "14:50:01 PDT"]
[Termination "TheSmoulderingMaster won on time"]

1. d4 {[%clk 0:04:54.8]} 1... Nf6 {[%clk 0:04:59]} 2. Nf3 {[%clk 0:04:52.9]}
2... d6 {[%clk 0:04:58.2]} 3. Bg5 {[%clk 0:04:51.2]} 3... Ne4 {[%clk 0:04:56]}
4. Bh4 {[%clk 0:04:48.6]} 4... c6 {[%clk 0:04:54.8]} 5. Nc3 {[%clk 0:04:45.8]}
5... Qa5 {[%clk 0:04:53]} 6. Qd3 {[%clk 0:04:29.8]} 6... Bf5 {[%clk 0:04:49.7]}
7. Qe3 {[%clk 0:04:06.5]} 7... Qb4 {[%clk 0:04:39.4]} 8. Rb1 {[%clk 0:03:42.9]}
8... Na6 {[%clk 0:04:33.3]} 9. a3 {[%clk 0:03:40.1]} 9... Qa5 {[%clk 0:04:29.8]}
10. g3 {[%clk 0:03:29.5]} 10... g6 {[%clk 0:04:22.6]} 11. Bg2 {[%clk 0:03:26.4]}
11... Bg7 {[%clk 0:04:20.6]} 12. O-O {[%clk 0:03:21]} 12... Nxc3 {[%clk
0:04:17]} 13. Qxc3 {[%clk 0:03:18.2]} 13... Qxc3 {[%clk 0:04:11.7]} 14. bxc3
{[%clk 0:03:17.7]} 14... b5 {[%clk 0:04:10.1]} 15. Rb2 {[%clk 0:03:14.3]} 15...
O-O {[%clk 0:04:08]} 16. Re1 {[%clk 0:02:50.6]} 16... e6 {[%clk 0:04:07]} 17. e4
{[%clk 0:02:48.3]} 17... Bg4 {[%clk 0:04:04.4]} 18. h3 {[%clk 0:02:40.3]} 18...
Bxf3 {[%clk 0:04:02.2]} 19. Bxf3 {[%clk 0:02:36.8]} 19... c5 {[%clk 0:03:58.2]}
20. d5 {[%clk 0:02:34]} 20... c4 {[%clk 0:03:55.8]} 21. dxe6 {[%clk 0:02:24.3]}
21... fxe6 {[%clk 0:03:54.3]} 22. Kg2 {[%clk 0:02:22.9]} 22... Nc5 {[%clk
0:03:52.4]} 23. e5 {[%clk 0:02:15.8]} 23... Bxe5 {[%clk 0:03:48.2]} 24. Bxa8
{[%clk 0:02:12.9]} 24... Rxa8 {[%clk 0:03:46.1]} 25. Bg5 {[%clk 0:01:57.4]}
25... Bxc3 {[%clk 0:03:43.8]} 26. Rxb5 {[%clk 0:01:54.8]} 26... Bxe1 {[%clk
0:03:42.2]} 27. Bh6 {[%clk 0:01:28.9]} 27... Ne4 {[%clk 0:03:35.1]} 28. Rb7
{[%clk 0:01:26.1]} 28... Bxf2 {[%clk 0:03:30.5]} 29. g4 {[%clk 0:01:22.4]} 29...
Bd4 {[%clk 0:03:23.8]} 30. Re7 {[%clk 0:01:13.1]} 30... e5 {[%clk 0:03:21.4]}
31. Rg7+ {[%clk 0:01:09.4]} 31... Kh8 {[%clk 0:03:20]} 32. Rd7 {[%clk
0:01:01.8]} 32... c3 {[%clk 0:03:10.7]} 33. Bg7+ {[%clk 0:01:00.4]} 33... Kg8
{[%clk 0:03:08.9]} 34. Bh6 {[%clk 0:00:51.3]} 34... Bc5 {[%clk 0:02:55.5]} 35.
Rg7+ {[%clk 0:00:43.2]} 35... Kh8 {[%clk 0:02:54.1]} 36. a4 {[%clk 0:00:40.9]}
36... Nd2 {[%clk 0:02:50.5]} 37. Rc7 {[%clk 0:00:25.4]} 37... Nc4 {[%clk
0:02:45.7]} 38. Bg7+ {[%clk 0:00:22.7]} 38... Kg8 {[%clk 0:02:44.2]} 39. Bf6
{[%clk 0:00:20.1]} 39... Ne3+ {[%clk 0:02:39.1]} 40. Kf3 {[%clk 0:00:17.6]}
40... Nxc2 {[%clk 0:02:38]} 41. Rg7+ {[%clk 0:00:15.2]} 41... Kf8 {[%clk
0:02:36.7]} 42. Rxh7 {[%clk 0:00:11.8]} 42... Nd4+ {[%clk 0:02:34.4]} 43. Kg3
{[%clk 0:00:06.8]} 43... c2 {[%clk 0:02:33.2]} 44. Rh8+ {[%clk 0:00:06]} 44...
Kf7 {[%clk 0:02:32.4]} 45. Rxa8 {[%clk 0:00:03.6]} 45... Kxf6 {[%clk 0:02:31.8]}
46. Rf8+ {[%clk 0:00:01.8]} 46... Ke7 {[%clk 0:02:28.6]} 47. Rf1 {[%clk
0:00:01.7]} 47... Ba3 {[%clk 0:02:26.4]} 48. Rc1 {[%clk 0:00:01.6]} 48... Bxc1
{[%clk 0:02:23.9]} 0-1

[Event "Live Chess"]
[Site "Chess.com"]
[Date "2023.05.20"]
[Round "-"]
[White "LanceMaster23"]
[Black "fso"]
[Result "0-1"]
[WhiteElo "1859"]
[BlackElo "2234"]
[TimeControl "300"]
[EndTime "14:50:14 PDT"]
[Termination "fso won by resignation"]

1. Nf3 {[%clk 0:04:57.2]} 1... Nf6 {[%clk 0:04:56.1]} 2. d4 {[%clk 0:04:54.8]}
2... d5 {[%clk 0:04:46.4]} 3. Bf4 {[%clk 0:04:54.2]} 3... e6 {[%clk 0:04:43.8]}
4. e3 {[%clk 0:04:53.4]} 4... c5 {[%clk 0:04:43]} 5. c3 {[%clk 0:04:51.5]} 5...
Bd6 {[%clk 0:04:39.3]} 6. Bg3 {[%clk 0:04:49.7]} 6... cxd4 {[%clk 0:04:38.2]} 7.
exd4 {[%clk 0:04:48.4]} 7... Bxg3 {[%clk 0:04:37.7]} 8. hxg3 {[%clk 0:04:48.3]}
8... h6 {[%clk 0:04:37.1]} 9. Nbd2 {[%clk 0:04:47.4]} 9... Nc6 {[%clk
0:04:34.5]} 10. Bd3 {[%clk 0:04:46.2]} 10... a6 {[%clk 0:04:33.4]} 11. a4 {[%clk
0:04:44.6]} 11... Qc7 {[%clk 0:04:31.7]} 12. O-O {[%clk 0:04:43.9]} 12... O-O
{[%clk 0:04:27.9]} 13. Re1 {[%clk 0:04:42.4]} 13... Ng4 {[%clk 0:04:19.9]} 14.
Qe2 {[%clk 0:04:04.5]} 14... Re8 {[%clk 0:04:10.1]} 15. b4 {[%clk 0:03:48.6]}
15... e5 {[%clk 0:03:59.2]} 16. dxe5 {[%clk 0:03:47.2]} 16... Ncxe5 {[%clk
0:03:53.5]} 17. Nxe5 {[%clk 0:03:38.9]} 17... Rxe5 {[%clk 0:03:27.7]} 18. Qf3
{[%clk 0:03:37.6]} 18... Be6 {[%clk 0:03:22.1]} 19. Nb3 {[%clk 0:03:10.1]} 19...
g6 {[%clk 0:02:57.8]} 20. Nd4 {[%clk 0:02:54.2]} 20... Rxe1+ {[%clk 0:02:52.6]}
21. Rxe1 {[%clk 0:02:51.2]} 21... Qxc3 {[%clk 0:02:51.4]} 22. Rxe6 {[%clk
0:02:25.9]} 22... Qxd4 {[%clk 0:02:45.9]} 23. Bxg6 {[%clk 0:00:36.4]} 23... Qa1+
{[%clk 0:02:37.8]} 0-1